[Event "Fagernes GM Open Autumn 2024"]
[Site "Fagernes"]
[Date "2024.10.13"]
[Round "9.24"]
[White "Sian, Shadi"]
[Black "Kittilsen, Sigurd"]
[Result "1-0"]
[ECO "A37"]
[WhiteElo "2182"]
[BlackElo "1981"]
[Annotator "RC"]
[PlyCount "107"]
[EventDate "2024.10.03"]
[EventType "swiss"]
[EventCountry "NOR"]
[SourceTitle "playchess.com"]
[Source "ChessBase"]
[SourceQuality "1"]
[TimeControl "40/6000:2400+30"]

1. c4 {[%emt 0:00:21]} c5 {[%emt 0:00:00]} 2. Nc3 {[%emt 0:00:00]} Nc6 {[%emt 0:00:24]} 3. g3 {[%emt 0:00:00]} g6 {[%emt 0:00:00]} 4. Bg2 {[%emt 0:00:00]} Bg7 {[%emt 0:00:00]} 5. Nf3 {[%emt 0:00:00]} d6 {[%emt 0:00:00]} 6. O-O {[%emt 0:00:00]} e5 {[%emt 0:00:00]} 7. d3 {[%emt 0:00:00]} Nge7 {[%emt 0:00:00]} 8. a3 {[%emt 0:00:00]} O-O {[%emt 0:00:00]} 9. Rb1 {[%emt 0:00:00]} a5 {[%emt 0:00:00]} 10. Ne1 {[%emt 0:00:00]} Be6 {[%emt 0:00:00]} 11. Nc2 {[%emt 0:00:00]} d5 {[%emt 0:01:56]} 12. cxd5 {[%emt 0:00:36]} Nxd5 {[%emt 0:00:00]} 13. Ne3 {[%emt 0:00:00]} Nce7 {[%emt 0:09:23]} 14. Bd2 {[%emt 0:05:02]} Rc8 {[%emt 0:02:48]} 15. Ncxd5 {[%emt 0:00:23]} Nxd5 {[%emt 0:00:01]} 16. Nxd5 {[%emt 0:00:44]} Bxd5 {[%emt 0:00:00]} 17. Bxa5 {[%emt 0:05:48]} Qxa5 {[%emt 0:01:45]} 18. Bxd5 {[%emt 0:00:00]} Rc7 {[%emt 0:07:32]} 19. Qb3 {[%emt 0:11:44]} Rd8 {[%emt 0:02:16]} 20. Bc4 {[%emt 0:05:08]} Rdd7 {[%emt 0:21:22]} 21. Rbc1 {[%emt 0:04:39]} h5 {[%emt 0:03:16]} 22. h4 {[%emt 0:00:34]} b6 {[%emt 0:04:37]} 23. Rc2 {[%emt 0:03:31]} Kh7 {[%emt 0:03:00]} 24. Bb5 {[%emt 0:02:06]} Re7 {[%emt 0:01:53]} 25. e4 {[%emt 0:13:08]} Qa7 {[%emt 0:09:25]} 26. Bc4 {[%emt 0:00:26]} Qa5 {[%emt 0:02:08]} 27. Bd5 {[%emt 0:02:39]} Ra7 {[%emt 0:00:00]} 28. Rc4 {[%emt 0:01:04]} Rec7 {[%emt 0:00:05]} 29. Qc2 {[%emt 0:01:59]} Qa6 {[%emt 0:01:45]} 30. Rc3 {[%emt 0:05:58]} Qa4 {[%emt 0:01:03]} 31. Qxa4 {[%emt 0:02:55]} Rxa4 {[%emt 0:00:00]} 32. Rb3 {[%emt 0:00:00]} Rd4 {[%emt 0:00:47]} 33. Rc1 {[%emt 0:15:42]} Bh6 {[%emt 0:16:57]} 34. Rc4 {[%emt 0:00:10]} Bd2 {[%emt 0:00:16]} 35. Rxd4 {[%emt 0:00:00]} cxd4 {[%emt 0:00:00]} 36. Rxb6 {[%emt 0:00:00]} Rc1+ {[%emt 0:00:00]} 37. Kg2 {[%emt 0:00:00]} Rc2 {[%emt 0:04:20]} 38. b3 {[%emt 0:02:18]} Be1 {[%emt 0:00:58]} 39. Rf6 {[%emt 0:00:05]} Rd2 {[%emt 0:00:26]} 40. Bc4 {[%emt 0:00:53]} Rc2 {[%emt 0:00:24]} 41. Rxf7+ {[%emt 0:40:36]} Kg8 {[%emt 0:40:45]} 42. Rf3+ {[%emt 0:01:39]} Kg7 {[%emt 0:00:12]} 43. b4 {[%emt 0:01:43]} Bd2 {[%emt 0:00:43]} 44. b5 {[%emt 0:00:36]} Rb2 {[%emt 0:00:00]} 45. Rf7+ {[%emt 0:00:00]} Kh6 {[%emt 0:00:00]} 46. a4 {[%emt 0:00:00]} Be1 {[%emt 0:00:00]} 47. Kh3 {[%emt 0:00:00]} Bxf2 {[%emt 0:00:00]} 48. Rxf2 {[%emt 0:00:00]} Rxf2 {[%emt 0:00:00]} 49. b6 {[%emt 0:00:00]} Rf6 {[%emt 0:00:00]} 50. a5 {[%emt 0:00:00]} Rf2 {[%emt 0:00:00]} 51. b7 {[%emt 0:00:00]} Rb2 {[%emt 0:00:00]} 52. a6 {[%emt 0:00:00]} Kg7 {[%emt 0:00:00]} 53. a7 {[%emt 0:00:00]} g5 {[%emt 0:00:00]} 54. hxg5 {[%emt 0:00:00]} 1-0

[Event "Fagernes GM Open Autumn 2024"]
[Site "Fagernes"]
[Date "2024.10.13"]
[Round "9.25"]
[White "Sieber, Fiona"]
[Black "Bjorkan, Olav"]
[Result "1/2-1/2"]
[ECO "E17"]
[WhiteElo "2264"]
[BlackElo "2022"]
[Annotator "RC"]
[PlyCount "45"]
[EventDate "2024.10.03"]
[EventType "swiss"]
[EventCountry "NOR"]
[SourceTitle "playchess.com"]
[Source "ChessBase"]
[SourceQuality "1"]
[TimeControl "40/6000:2400+30"]

1. c4 {[%emt 0:00:00]} e6 {[%emt 0:00:00]} 2. Nf3 {[%emt 0:00:00]} d5 {[%emt 0:00:00]} 3. g3 {[%emt 0:00:00]} Nf6 {[%emt 0:00:00]} 4. Bg2 {[%emt 0:00:00]} Be7 {[%emt 0:00:00]} 5. d4 {[%emt 0:03:40]} O-O {[%emt 0:00:00]} 6. O-O {[%emt 0:00:00]} Nbd7 {[%emt 0:04:15]} 7. Nbd2 {[%emt 0:06:21]} b6 {[%emt 0:06:23]} 8. b3 {[%emt 0:10:53]} Bb7 {[%emt 0:00:58]} 9. Bb2 {[%emt 0:00:00]} Ne4 {[%emt 0:09:43]} 10. Qc2 {[%emt 0:02:30]} f5 {[%emt 0:03:49]} 11. Rfd1 {[%emt 0:03:53]} c6 {[%emt 0:01:07]} 12. Ne5 {[%emt 0:01:37]} Nxe5 {[%emt 0:07:21]} 13. dxe5 {[%emt 0:00:00]} Qe8 {[%emt 0:01:40]} 14. Nxe4 {[%emt 0:13:36]} fxe4 {[%emt 0:00:00]} 15. f3 {[%emt 0:00:00]} Qh5 {[%emt 0:16:06]} 16. Rf1 {[%emt 0:01:19]} Bc5+ {[%emt 0:08:41]} 17. Kh1 {[%emt 0:00:00]} exf3 {[%emt 0:00:57]} 18. exf3 {[%emt 0:00:00]} Rad8 {[%emt 0:02:25]} 19. Rad1 {[%emt 0:06:20]} Rd7 {[%emt 0:05:06]} 20. cxd5 {[%emt 0:04:54]} cxd5 {[%emt 0:00:00]} 21. Qe2 {[%emt 0:00:00]} Rdf7 {[%emt 0:02:06]} 22. Bd4 {[%emt 0:01:12]} Rc7 {[%emt 0:07:37]} 23. Bb2 {[%emt 0:16:07]} 1/2-1/2

[Event "Fagernes GM Open Autumn 2024"]
[Site "Fagernes"]
[Date "2024.10.13"]
[Round "9.26"]
[White "Aamodt, Peder Marcus"]
[Black "Simonsen, David Mindestrommen"]
[Result "1-0"]
[ECO "B86"]
[WhiteElo "2126"]
[BlackElo "1930"]
[Annotator "RC"]
[PlyCount "59"]
[EventDate "2024.10.03"]
[EventType "swiss"]
[EventCountry "NOR"]
[SourceTitle "playchess.com"]
[Source "ChessBase"]
[SourceQuality "1"]
[TimeControl "40/6000:2400+30"]

1. e4 {[%emt 0:04:01]} c5 {[%emt 0:00:00]} 2. Nf3 {[%emt 0:00:00]} d6 {[%emt 0:00:00]} 3. d4 {[%emt 0:00:00]} cxd4 {[%emt 0:00:00]} 4. Nxd4 {[%emt 0:00:00]} Nf6 {[%emt 0:00:00]} 5. Nc3 {[%emt 0:00:00]} a6 {[%emt 0:00:00]} 6. Bc4 {[%emt 0:00:00]} e6 {[%emt 0:00:00]} 7. a4 {[%emt 0:00:00]} Qc7 {[%emt 0:00:59]} 8. Qe2 {[%emt 0:00:00]} Be7 {[%emt 0:01:37]} 9. O-O {[%emt 0:00:00]} Nc6 {[%emt 0:00:50]} 10. Nxc6 {[%emt 0:00:13]} bxc6 {[%emt 0:02:39]} 11. a5 {[%emt 0:00:19]} d5 {[%emt 0:02:42]} 12. Bd3 {[%emt 0:09:57]} Bb7 {[%emt 0:08:22]} 13. Bg5 {[%emt 0:07:07]} Nxe4 {[%emt 0:02:27]} 14. Bxe7 {[%emt 0:04:01]} Nxc3 {[%emt 0:00:02]} 15. Qg4 {[%emt 0:00:29]} Kxe7 {[%emt 0:13:07]} 16. bxc3 {[%emt 0:01:23]} c5 {[%emt 0:06:38]} 17. c4 {[%emt 0:18:13]} d4 {[%emt 0:05:46]} 18. f4 {[%emt 0:00:10]} Rag8 {[%emt 0:08:09]} 19. f5 {[%emt 0:03:25]} e5 {[%emt 0:04:41]} 20. Rab1 {[%emt 0:01:47]} f6 {[%emt 0:08:55]} 21. Rb6 {[%emt 0:04:00]} h5 {[%emt 0:00:12]} 22. Qg6 {[%emt 0:01:25]} Rh6 {[%emt 0:00:00]} 23. Re6+ {[%emt 0:00:00]} Kd8 {[%emt 0:00:00]} 24. Qg3 {[%emt 0:00:24]} h4 {[%emt 0:00:00]} 25. Qg4 {[%emt 0:02:08]} h3 {[%emt 0:01:01]} 26. Rb1 {[%emt 0:10:01]} Qxa5 {[%emt 0:01:33]} 27. Reb6 {[%emt 0:16:47]} Bc8 {[%emt 0:01:17]} 28. Qe4 {[%emt 0:00:02]} Qd2 {[%emt 0:00:30]} 29. Qd5+ {[%emt 0:00:01]} Bd7 {[%emt 0:00:31]} 30. Qxg8+ {[%emt 0:00:00]} 1-0

[Event "Fagernes GM Open Autumn 2024"]
[Site "Fagernes"]
[Date "2024.10.13"]
[Round "9.28"]
[White "Rustan, Elias Buschmann"]
[Black "Stromhaug, Kristoffer Wang"]
[Result "0-1"]
[ECO "C42"]
[WhiteElo "1941"]
[BlackElo "1960"]
[Annotator "RC"]
[PlyCount "106"]
[EventDate "2024.10.03"]
[EventType "swiss"]
[EventCountry "NOR"]
[SourceTitle "playchess.com"]
[Source "ChessBase"]
[SourceQuality "1"]
[TimeControl "40/6000:2400+30"]

1. e4 {[%emt 0:00:00]} e5 {[%emt 0:00:00]} 2. Nf3 {[%emt 0:00:00]} Nf6 {[%emt 0:00:00]} 3. Nxe5 {[%emt 0:00:00]} d6 {[%emt 0:00:00]} 4. Nf3 {[%emt 0:00:00]} Nxe4 {[%emt 0:00:00]} 5. d4 {[%emt 0:00:00]} d5 {[%emt 0:00:00]} 6. Bd3 {[%emt 0:00:00]} Nc6 {[%emt 0:00:00]} 7. O-O {[%emt 0:00:00]} Be7 {[%emt 0:00:00]} 8. Nbd2 {[%emt 0:00:00]} Bf5 {[%emt 0:00:00]} 9. Re1 {[%emt 0:04:28]} Nxd2 {[%emt 0:01:43]} 10. Qxd2 {[%emt 0:01:39]} Qd7 {[%emt 0:00:27]} 11. Bxf5 {[%emt 0:22:28]} Qxf5 {[%emt 0:00:00]} 12. Qf4 {[%emt 0:06:13]} Qxc2 {[%emt 0:37:58]} 13. Qxc7 {[%emt 0:04:40]} O-O {[%emt 0:01:30]} 14. Qxb7 {[%emt 0:04:15]} Bb4 {[%emt 0:01:24]} 15. Rf1 {[%emt 0:02:48]} Rab8 {[%emt 0:02:57]} 16. Qd7 {[%emt 0:01:01]} Rfd8 {[%emt 0:01:47]} 17. Qg4 {[%emt 0:01:35]} Qe4 {[%emt 0:06:45]} 18. Qxe4 {[%emt 0:06:23]} dxe4 {[%emt 0:00:00]} 19. Ng5 {[%emt 0:00:54]} f5 {[%emt 0:11:56]} 20. Ne6 {[%emt 0:03:49]} Rd6 {[%emt 0:06:04]} 21. Bf4 {[%emt 0:01:30]} Rxe6 {[%emt 0:00:00]} 22. Bxb8 {[%emt 0:01:44]} Nxb8 {[%emt 0:00:00]} 23. Rac1 {[%emt 0:00:37]} Bd6 {[%emt 0:00:00]} 24. Rc4 {[%emt 0:02:46]} Kf7 {[%emt 0:00:40]} 25. b4 {[%emt 0:02:52]} Nd7 {[%emt 0:01:13]} 26. b5 {[%emt 0:01:31]} f4 {[%emt 0:01:34]} 27. Rc6 {[%emt 0:04:17]} Ke7 {[%emt 0:04:00]} 28. a4 {[%emt 0:00:32]} e3 {[%emt 0:00:25]} 29. a5 {[%emt 0:00:35]} Nb8 {[%emt 0:00:06]} 30. Rc2 {[%emt 0:02:56]} Bb4 {[%emt 0:01:12]} 31. fxe3 {[%emt 0:03:06]} fxe3 {[%emt 0:00:00]} 32. Re2 {[%emt 0:02:52]} Bxa5 {[%emt 0:00:00]} 33. Rd1 {[%emt 0:00:17]} Kd6 {[%emt 0:03:01]} 34. Rd3 {[%emt 0:00:00]} Bb6 {[%emt 0:00:19]} 35. Kf1 {[%emt 0:00:14]} Rf6+ {[%emt 0:00:18]} 36. Ke1 {[%emt 0:01:32]} Ba5+ {[%emt 0:00:00]} 37. Kd1 {[%emt 0:00:00]} Bd2 {[%emt 0:00:00]} 38. Ra3 {[%emt 0:00:00]} Rf7 {[%emt 0:00:10]} 39. Kc2 {[%emt 0:00:00]} Rc7+ {[%emt 0:01:17]} 40. Kd3 {[%emt 0:02:17]} Kd5 {[%emt 0:01:39]} 41. g4 {[%emt 0:45:31]} a6 {[%emt 0:14:26]} 42. bxa6 {[%emt 0:00:00]} Nxa6 {[%emt 0:00:55]} 43. Rxe3 {[%emt 0:00:00]} Bxe3 {[%emt 0:00:22]} 44. Ra5+ {[%emt 0:00:00]} Nc5+ {[%emt 0:01:04]} 45. Kxe3 {[%emt 0:00:00]} Re7+ {[%emt 0:00:06]} 46. Kf3 {[%emt 0:00:00]} Kxd4 {[%emt 0:00:10]} 47. Ra1 {[%emt 0:00:00]} Rf7+ {[%emt 0:00:54]} 48. Kg2 {[%emt 0:00:00]} Rb7 {[%emt 0:01:48]} 49. Rd1+ {[%emt 0:00:00]} Ke5 {[%emt 0:00:25]} 50. Kg3 {[%emt 0:00:00]} Ne4+ {[%emt 0:00:31]} 51. Kh4 {[%emt 0:00:00]} Rb3 {[%emt 0:01:14]} 52. Ra1 {[%emt 0:00:00]} g5+ {[%emt 0:00:14]} 53. Kh5 {[%emt 0:00:00]} Rh3# {[%emt 0:00:06]} 0-1

[Event "Fagernes GM Open Autumn 2024"]
[Site "Fagernes"]
[Date "2024.10.13"]
[Round "9.29"]
[White "Sorgjerd, Jan"]
[Black "Juodziukynas, Aidas"]
[Result "1/2-1/2"]
[ECO "E36"]
[WhiteElo "1966"]
[BlackElo "1917"]
[Annotator "RC"]
[PlyCount "48"]
[EventDate "2024.10.03"]
[EventType "swiss"]
[EventCountry "NOR"]
[SourceTitle "playchess.com"]
[Source "ChessBase"]
[SourceQuality "1"]
[TimeControl "40/6000:2400+30"]

1. d4 {[%emt 0:00:00]} Nf6 {[%emt 0:00:07]} 2. c4 {[%emt 0:00:00]} e6 {[%emt 0:00:00]} 3. Nc3 {[%emt 0:00:00]} Bb4 {[%emt 0:00:00]} 4. Qc2 {[%emt 0:00:00]} O-O {[%emt 0:00:00]} 5. a3 {[%emt 0:00:00]} Bxc3+ {[%emt 0:00:00]} 6. Qxc3 {[%emt 0:00:00]} d5 {[%emt 0:00:00]} 7. Bg5 {[%emt 0:00:00]} Nbd7 {[%emt 0:02:06]} 8. e3 {[%emt 0:00:00]} b6 {[%emt 0:02:08]} 9. cxd5 {[%emt 0:07:24]} exd5 {[%emt 0:00:00]} 10. Bb5 {[%emt 0:04:50]} Bb7 {[%emt 0:01:29]} 11. Bc6 {[%emt 0:05:34]} Qc8 {[%emt 0:03:22]} 12. Bf4 {[%emt 0:01:56]} Ne4 {[%emt 0:01:10]} 13. Qc2 {[%emt 0:00:57]} Ndc5 {[%emt 0:01:40]} 14. Bb5 {[%emt 0:08:53]} Ne6 {[%emt 0:00:00]} 15. Ne2 {[%emt 0:04:07]} a6 {[%emt 0:06:22]} 16. Bd3 {[%emt 0:01:49]} c5 {[%emt 0:00:53]} 17. O-O {[%emt 0:04:47]} cxd4 {[%emt 0:00:36]} 18. exd4 {[%emt 0:02:40]} Qxc2 {[%emt 0:00:11]} 19. Bxc2 {[%emt 0:00:00]} Rac8 {[%emt 0:00:00]} 20. Bd3 {[%emt 0:00:00]} Rc6 {[%emt 0:01:14]} 21. Be3 {[%emt 0:00:00]} Nf6 {[%emt 0:01:28]} 22. h3 {[%emt 0:03:11]} Rfc8 {[%emt 0:00:20]} 23. Rfc1 {[%emt 0:04:56]} h6 {[%emt 0:03:14]} 24. Kf1 {[%emt 0:03:47]} Kf8 {[%emt 0:00:02]} 1/2-1/2